bitfinex/quotes_ETHUSD_20230119
["timestamp","ask_amount","ask_price","bid_price","bid_amount"]
[1674132826231,0.56349819,1516.6,1516.1,23.14506759]
[1674132826401,0.49749819,1516.6,1516.2,2.31450676]
[1674132826618,0.49749819,1516.6,1516.3,6.59494]
[1674132826763,0.49749819,1516.6,1516.3,6.66094]
[1674132827200,0.49749819,1516.6,1516.3,0.066]
[1674132827411,7.09121819,1516.6,1516.2,8.97574676]
[1674132827606,7.15721819,1516.6,1516.2,15.57096676]
[1674132827856,17.6229054,1516.6,1516.2,6.66122]
[1674132828256,25.6006254,1516.6,1516.2,0.066]
[1674132828496,1.388,1516.5,1516.1,6.59554]
[1674132828722,6.59415,1516.5,1516.1,13.25717]
[1674132829033,6.66015,1516.5,1516.1,16.88255524]
[1674132830286,6.66015,1516.5,1516.1,23.47820524]
[1674132830501,6.66015,1516.5,1516.1,16.88255524]
[1674132830866,6.66015,1516.5,1516.1,0.066]
[1674132830867,14.2473779,1516.5,1516.1,0.066]
[1674132831088,14.92897534,1516.5,1516.0,33.25516243]
[1674132831444,1.8827,1516.4,1516.0,20.06268243]
[1674132831601,7.98367,1516.2,1516.0,20.06268243]
[1674132831819,8.04967,1516.2,1516.0,20.06268243]
[1674132832020,8.04967,1516.2,1516.0,0.066]
[1674132832233,8.04967,1516.2,1515.8,13.25993]
[1674132832480,6.66167,1516.2,1515.9,1.325993]
[1674132832691,6.66167,1516.2,1516.0,1.0]
[1674132833077,6.66167,1516.2,1515.9,2.325993]
[1674132834014,6.66167,1516.2,1515.9,1.325993]
[1674132834226,6.66167,1516.2,1515.8,19.85691]
[1674132835205,0.066,1516.2,1515.8,23.14865759]
[1674132835433,6.66403819,1516.3,1515.9,1.0]
[1674132835760,6.66403819,1516.3,1516.0,0.1]
[1674132835966,6.66403819,1516.3,1515.9,19.85569]
[1674132836288,13.25925819,1516.3,1515.9,6.66247]
[1674132838794,6.66403819,1516.3,1516.0,1.0]
[1674132839009,6.66403819,1516.3,1516.0,6.59626]
[1674132839225,6.66403819,1516.3,1516.0,6.66226]
[1674132839584,6.66403819,1516.3,1516.0,8.647807]
[1674132840319,6.66114,1516.3,1516.0,8.647807]
[1674132842259,6.66114,1516.3,1516.0,6.66226]
[1674132842849,8.22414,1516.3,1516.0,0.066]
[1674132843079,1.553,1516.2,1515.9,0.066]
[1674132843330,8.14865,1516.2,1515.8,13.26008]
[1674132843603,8.21465,1516.2,1515.8,17.24549024]
[1674132846358,8.21465,1516.2,1515.8,10.64838024]
[1674132846688,21.40595,1516.2,1515.8,0.066]
[1674132846906,14.8103,1516.2,1515.8,6.59705]
[1674132847058,14.8103,1516.2,1515.8,6.66305]
[1674132848149,13.2573,1516.2,1515.8,6.66305]
[1674132848313,13.2573,1516.2,1515.8,10.64849324]
[1674132850365,13.2573,1516.2,1515.8,27.13458083]
[1674132850366,0.066,1516.2,1515.8,27.13458083]
[1674132850579,13.25927819,1516.3,1515.9,1.0]
[1674132850751,13.25927819,1516.3,1515.9,10.41000808]
[1674132850963,6.661,1516.3,1515.9,17.07274808]
[1674132851423,0.066,1516.3,1515.9,26.96123567]
[1674132851571,24.19582665,1516.4,1515.9,26.96123567]
[1674132851572,23.57476,1516.4,1515.9,26.96123567]
[1674132851786,22.01176,1516.4,1516.0,9.29216357]
[1674132852002,22.01176,1516.4,1516.0,9.35816357]
[1674132853692,1.56,1516.1,1516.0,0.066]
[1674132853909,14.75174,1516.1,1515.7,28.38787801]
[1674132854210,14.81774,1516.1,1515.7,28.38787801]
[1674132854420,6.66187,1516.1,1515.7,46.69613781]
[1674132854666,0.4948,1516.0,1515.7,46.69613781]
[1674132855041,15.77027,1516.1,1515.7,38.36993781]
[1674132855287,9.1744,1516.1,1515.8,1.0]
[1674132855464,9.1744,1516.1,1515.8,7.59695]
[1674132855822,9.1744,1516.1,1515.8,7.66194558]
[1674132856028,0.5608,1516.1,1515.8,29.07389671]
[1674132856195,10.7345,1516.2,1515.8,29.07389671]
[1674132856410,10.2397,1516.2,1515.8,30.79241944]
[1674132856622,10.2397,1516.2,1515.9,4.43738264]
[1674132856886,10.2397,1516.2,1516.0,6.5963]
[1674132857194,0.066,1516.2,1516.0,8.96941034]
[1674132857386,9.1743,1516.3,1516.0,8.96941034]
[1674132858822,8.6796,1516.3,1516.0,15.56571034]
[1674132861401,8.6796,1516.3,1516.0,13.25759558]
[1674132861719,6.59832819,1516.2,1516.0,0.06499558]
[1674132861874,6.66432819,1516.2,1515.8,13.25889558]
[1674132862079,7.15912819,1516.2,1515.8,17.82422226]
[1674132862454,7.84619484,1516.2,1515.8,13.25889558]
[1674132862605,1.562,1516.0,1515.8,0.06499558]
[1674132862942,1.562,1516.0,1515.7,26.65899801]
[1674132863150,1.562,1516.0,1515.7,30.34836553]
[1674132863343,1.0,1515.9,1515.7,20.06167801]
[1674132863675,8.16290819,1515.9,1515.7,20.06167801]
[1674132863863,0.066,1515.9,1515.7,6.66256558]
[1674132864075,0.4948,1516.0,1515.7,6.66256558]
[1674132864336,0.4948,1516.0,1515.7,0.06499558]
[1674132864337,7.09132,1516.0,1515.7,0.06499558]
[1674132864655,6.66252,1516.0,1515.6,13.26049558]
[1674132864869,6.66252,1516.0,1515.7,1.32604956]
[1674132865439,6.66252,1516.0,1515.7,7.92363956]
[1674132865711,13.25904,1516.0,1515.7,0.06499558]
[1674132865862,13.25904,1516.0,1515.6,0.06499558]
[1674132865863,19.85556,1516.0,1515.6,0.06499558]
[1674132866066,28.92316,1516.0,1515.5,40.12089708]
[1674132866448,28.92316,1516.0,1515.5,36.81422467]
[1674132866615,30.48616,1516.0,1515.5,36.81422467]
[1674132866805,1.56289819,1515.9,1515.5,20.32585708]
[1674132867176,13.19452,1515.8,1515.5,20.32585708]
[1674132867346,13.26052,1515.8,1515.5,20.32585708]
[1674132868064,13.26052,1515.8,1515.5,0.32917465]
[1674132868065,21.42078,1515.8,1515.5,0.32917465]
[1674132868280,8.418622,1515.7,1515.5,0.26417907]
[1674132868533,10.037622,1515.7,1515.5,0.26417907]
[1674132868694,9.542722,1515.7,1515.5,0.26417907]
[1674132868906,19.43213959,1515.7,1515.5,0.26417907]
[1674132869263,19.43213959,1515.7,1515.4,0.26417907]
[1674132869264,18.74529396,1515.6,1515.4,0.26417907]
[1674132869599,9.15148,1515.5,1515.4,0.26417907]
[1674132869830,15.31096,1515.5,1515.4,0.26417907]
[1674132869974,18.31096,1515.5,1515.4,0.26417907]
[1674132870173,19.50131916,1515.5,1515.4,0.26417907]
[1674132870378,24.35606675,1515.5,1515.4,0.26417907]
[1674132870612,28.5431334,1515.5,1515.4,0.26417907]
[1674132870837,28.5431334,1515.5,1515.3,0.26417907]
[1674132871053,11.14274759,1515.4,1515.2,0.22878822]
[1674132871264,11.14274759,1515.4,1515.1,0.23565001]
[1674132871265,1.0,1515.2,1515.1,0.23565001]
[1674132871480,1.0,1515.1,1514.3,2.73162992]
[1674132871705,1.0,1515.1,1514.1,1.46808445]
[1674132871706,3.29174759,1514.5,1514.1,1.46808445]
[1674132871919,0.4954,1514.4,1513.9,1.85348768]
[1674132872247,0.066,1514.6,1514.1,0.69038265]
[1674132872396,0.54326476,1514.9,1514.4,1.56]
[1674132872605,0.54326476,1514.9,1514.2,8.19383508]
[1674132872606,8.116,1514.3,1514.2,8.19383508]
[1674132872812,0.47726476,1514.9,1514.4,1.77053976]
[1674132872813,0.56726476,1514.9,1514.4,1.77053976]
[1674132873135,0.47726476,1514.9,1514.8,1.563]
[1674132873341,0.47726476,1514.9,1514.8,1.9618]
[1674132873594,0.47726476,1514.9,1514.8,25.73379243]
[1674132873761,0.47726476,1514.9,1514.8,26.02979243]
[1674132873988,0.47726476,1514.9,1514.8,3.4648]
[1674132874195,0.47726476,1514.9,1514.8,5.7033]
[1674132874552,0.47726476,1514.9,1514.8,5.7693]
[1674132874710,0.47726476,1514.9,1514.8,8.21523243]
[1674132874925,0.47726476,1514.9,1514.8,23.29376243]
[1674132875171,0.00026476,1514.9,1514.8,23.87057467]
[1674132875406,0.00026476,1514.9,1514.8,25.76423078]
[1674132875815,0.00026476,1514.9,1514.8,25.09097494]
[1674132876222,0.00026476,1514.9,1514.8,32.00101788]
[1674132876404,3.156,1515.9,1514.8,32.00111187]
[1674132876764,3.9948,1516.0,1515.0,10.855]
[1674132876765,0.156,1516.0,1515.0,10.855]
[1674132876989,0.049,1516.0,1515.5,1.563]
[1674132877123,0.4948,1516.1,1515.6,1.55]
[1674132877329,0.4948,1516.1,1515.7,0.155]
[1674132877540,18.5333,1516.2,1515.7,8.31537]
[1674132877541,0.066,1516.2,1515.7,8.31537]
[1674132877790,3.4947,1516.3,1515.8,1.557]
[1674132878005,0.5607,1516.4,1515.9,1.7157]
[1674132878223,0.5607,1516.4,1515.9,8.31243]
[1674132878224,0.4947,1516.4,1515.9,8.31243]
[1674132878532,0.4947,1516.4,1516.1,1.563]
[1674132878752,1.17970785,1516.6,1516.1,1.563]
[1674132878915,1.17970785,1516.6,1516.2,1.9493]
[1674132879127,4.24570785,1516.7,1516.3,1.562]
[1674132879341,4.17970785,1516.7,1516.3,2.22303218]
[1674132879749,0.4946,1516.7,1516.3,3.22303218]
[1674132879999,0.4946,1516.7,1516.3,7.84185499]
[1674132880182,2.29873966,1516.8,1516.4,3.29174759]
[1674132880414,0.70768889,1516.8,1516.4,4.85374759]
[1674132880749,0.70768889,1516.8,1516.4,5.85374759]
[1674132880750,3.0,1516.7,1516.4,5.85374759]
[1674132880970,3.0,1516.7,1516.5,1.563]
[1674132881116,3.0,1516.7,1516.4,4.35774759]
[1674132881117,3.68510785,1516.7,1516.4,4.91774759]
[1674132881326,3.68510785,1516.7,1516.4,4.85174759]
[1674132881327,3.0,1516.7,1516.4,4.85174759]
[1674132881588,3.77368889,1516.8,1516.5,3.29174759]
[1674132881744,3.70768889,1516.8,1516.6,1.563]
[1674132881952,0.70768889,1516.8,1516.6,1.563]
[1674132882202,0.02258104,1516.8,1516.6,5.85474759]
[1674132882413,0.02258104,1516.8,1516.6,5.92074759]
[1674132882944,0.02258104,1516.8,1516.6,4.92074759]
[1674132883147,0.02258104,1516.8,1516.6,4.85474759]
[1674132883696,0.02258104,1516.8,1516.7,3.29174759]
[1674132884640,0.02258104,1516.8,1516.7,5.44682235]
[1674132884957,0.02258104,1516.8,1516.7,10.95575478]
[1674132886115,0.02258104,1516.8,1516.7,17.86775478]
[1674132886436,0.02258104,1517.0,1516.8,0.02191896]
[1674132886615,0.02258104,1517.0,1516.9,13.32174759]
[1674132886956,0.02377559,1517.1,1516.9,13.96247267]
[1674132887271,0.02377559,1517.1,1517.0,30.42359759]
[1674132887583,0.03125503,1517.4,1517.0,49.38918035]
[1674132887753,0.03125503,1517.4,1517.3,19.59804759]
[1674132887940,0.03125503,1517.4,1517.3,25.51293835]
[1674132888153,0.0226213,1517.5,1517.3,26.16987078]
[1674132888364,0.0226213,1517.5,1517.4,9.64674759]
[1674132888633,0.0226213,1517.5,1517.4,17.86596759]
[1674132888783,2.13e-05,1517.5,1517.4,18.52290002]
[1674132889002,0.03571819,1517.6,1517.5,1.0]
[1674132889224,0.03125503,1517.8,1517.5,14.23752759]
[1674132889542,0.03125503,1517.8,1517.7,3.29174759]
[1674132889746,0.03125503,1517.8,1517.7,2.62174087]
[1674132889954,0.03125503,1517.8,1517.7,5.62174087]
[1674132890166,0.03125503,1517.8,1517.7,5.68774087]
[1674132890568,0.03125503,1517.8,1517.7,9.36851496]
[1674132890777,0.03125503,1517.8,1517.7,9.59851496]
[1674132891042,0.03125503,1517.8,1517.7,7.87151496]
[1674132891272,0.03125503,1517.8,1517.7,7.30274087]
[1674132891415,1.30225503,1517.8,1517.7,0.066]
[1674132891825,1.30225503,1517.8,1517.6,3.0]
[1674132891979,0.03125503,1517.8,1517.6,3.29174759]
[1674132893891,3.03125503,1517.8,1517.6,3.29174759]
[1674132894061,3.33592532,1517.8,1517.6,3.29174759]
[1674132894267,3.33592532,1517.8,1517.5,0.066]
[1674132894465,3.33592532,1517.8,1517.6,3.29174759]
[1674132894466,0.03125503,1517.8,1517.6,3.29174759]
[1674132894676,0.03125503,1517.8,1517.7,3.29174759]
[1674132895343,0.03125503,1517.8,1517.7,6.29174759]
[1674132895550,0.03125503,1517.8,1517.7,6.35774759]
[1674132896403,0.03125503,1517.8,1517.7,7.09352235]
[1674132896723,0.03125503,1517.8,1517.7,8.09352235]
[1674132897761,0.03125503,1517.8,1517.7,8.32352235]
[1674132897942,0.03125503,1517.8,1517.7,9.70152235]
[1674132898679,0.03125503,1517.8,1517.7,17.99852235]
[1674132898882,0.03125503,1517.8,1517.7,18.65545478]
[1674132900350,0.03125503,1517.8,1517.7,17.67543235]
[1674132900563,0.03125503,1517.8,1517.7,9.70852235]
[1674132901033,0.03125503,1517.8,1517.7,8.32352235]
[1674132901254,0.03125503,1517.8,1517.7,28.41334235]
[1674132902770,0.03125503,1517.8,1517.7,12.94665759]
[1674132903928,3.33125503,1517.8,1517.7,6.35774759]
[1674132904609,2.11061828,1517.8,1517.7,7.58774759]
[1674132904778,2.11061828,1517.8,1517.7,20.76556759]
[1674132904995,2.11061828,1517.8,1517.7,24.19225535]
[1674132905206,2.11061828,1517.8,1517.7,31.76528374]
[1674132906638,0.01544789,1517.9,1517.7,34.55048488]
[1674132906867,0.01544789,1517.9,1517.8,15.49674759]
[1674132907158,0.01544789,1517.9,1517.8,28.73970759]
[1674132907311,0.01544789,1517.9,1517.8,34.04835208]
[1674132909246,0.01544789,1517.9,1517.8,26.90635208]
[1674132909472,0.01544789,1517.9,1517.8,24.84335208]
[1674132909792,0.01544789,1517.9,1517.8,12.94622759]
[1674132909937,0.01544789,1517.9,1517.8,9.94622759]
[1674132911590,0.01544789,1517.9,1517.8,12.94622759]
[1674132911933,0.01544789,1517.9,1517.8,6.35774759]
[1674132913183,0.01544789,1517.9,1517.8,19.76470759]
[1674132913365,0.01544789,1517.9,1517.8,22.40047895]
[1674132916511,0.01544789,1517.9,1517.8,12.94622759]
[1674132918440,0.01544789,1517.9,1517.8,19.76470759]
[1674132918592,0.01544789,1517.9,1517.8,26.35318759]
[1674132921219,0.01544789,1517.9,1517.8,12.94622759]
[1674132921432,0.01544789,1517.9,1517.8,6.35774759]
[1674132921680,0.01544789,1517.9,1517.8,12.94622759]
[1674132921871,0.01544789,1517.9,1517.8,14.90013294]
[1674132922088,0.01544789,1517.9,1517.8,28.07709294]
[1674132922693,0.01544789,1517.9,1517.8,28.30709294]
[1674132924479,2.11373205,1518.0,1517.8,28.30709294]
[1674132924692,2.11373205,1518.0,1517.9,6.52174759]
[1674132925056,2.11373205,1518.0,1517.9,26.35186759]
[1674132925214,2.11373205,1518.0,1517.9,29.18244488]
[1674132928472,2.11373205,1518.0,1517.9,30.3264544]
[1674132929244,2.11373205,1518.0,1517.9,37.2384544]
[1674132929594,0.28335563,1518.0,1517.9,38.9544446]
[1674132930834,0.01544789,1518.3,1518.0,0.50007001]
[1674132931047,0.01544789,1518.3,1518.2,36.55070759]
[1674132931215,0.01544789,1518.3,1518.2,43.7878544]
[1674132931409,0.01544789,1518.3,1518.2,46.16039178]
[1674132932301,0.01544789,1518.3,1518.2,46.84811636]
[1674132932471,0.01544789,1518.3,1518.2,51.84428668]
[1674132933091,0.01544789,1518.3,1518.2,48.35920055]
[1674132933301,0.01544789,1518.3,1518.2,51.15331324]
[1674132934473,0.01544789,1518.3,1518.2,48.35920055]
[1674132935194,0.01544789,1518.3,1518.2,51.15128939]
[1674132936453,7.89e-06,1518.3,1518.2,51.83901397]
[1674132936704,7.89e-06,1518.3,1518.2,69.6607643]
[1674132936918,7.89e-06,1518.3,1518.2,70.64451468]
[1674132937363,7.89e-06,1518.3,1518.2,73.10906479]
[1674132937510,7.89e-06,1518.3,1518.2,73.10891779]
[1674132937721,7.89e-06,1518.3,1518.2,72.45198536]
[1674132938039,0.32579059,1518.5,1518.2,72.07747792]
[1674132938281,0.32579059,1518.5,1518.4,50.42597792]
[1674132938471,0.32579059,1518.5,1518.4,51.86562525]
[1674132938705,0.32579059,1518.5,1518.4,53.72197792]
[1674132939039,0.32579059,1518.5,1518.4,40.98688696]
[1674132939399,0.32579059,1518.5,1518.4,39.84322759]
[1674132939698,0.32579059,1518.5,1518.4,42.67380488]
[1674132940294,5.9e-07,1518.5,1518.4,49.41391121]
[1674132940612,0.04083259,1518.6,1518.5,27.66832]
[1674132940817,0.04083259,1518.6,1518.5,37.05001548]
[1674132940979,0.04083259,1518.6,1518.5,34.25606759]
[1674132941186,0.04083259,1518.6,1518.5,40.94459622]
[1674132941387,0.06763168,1518.7,1518.6,10.53999741]
[1674132941599,0.06763168,1518.7,1518.6,19.9208301]
[1674132941875,0.06763168,1518.7,1518.6,40.33279253]
[1674132942023,0.06763168,1518.7,1518.6,39.6758601]
[1674132942253,0.06763168,1518.7,1518.6,44.67203042]
[1674132942462,0.06763168,1518.7,1518.6,45.32896285]
[1674132943662,0.06763168,1518.8,1518.7,1.0]
[1674132943818,0.06763168,1518.8,1518.7,36.97832089]
[1674132944036,0.06763168,1518.8,1518.7,37.04432089]
[1674132944296,0.06763168,1518.8,1518.7,43.05510616]
[1674132944466,0.04608509,1518.9,1518.7,62.94685649]
[1674132944677,0.01869467,1519.0,1518.9,9.56763167]
[1674132945018,0.01869467,1519.0,1518.9,42.49021926]
[1674132946033,0.01869467,1519.0,1518.9,41.21921926]
[1674132946245,0.01869467,1519.0,1518.9,44.04979655]
[1674132947110,0.01869467,1519.0,1518.9,45.43279655]
[1674132947323,0.01869467,1519.0,1518.9,49.37579655]
[1674132948521,0.01869467,1519.0,1518.9,45.43279655]
[1674132949759,0.01869467,1519.0,1518.9,39.90221926]
[1674132949760,1.28969467,1519.0,1518.9,39.90221926]
[1674132949971,4.28969467,1519.0,1518.9,23.50479926]
[1674132950139,4.28969467,1519.0,1518.9,16.59279926]
[1674132951351,4.28969467,1519.0,1518.9,18.91049019]
[1674132951352,3.01869467,1519.0,1518.9,18.91049019]
[1674132951490,0.01869467,1519.0,1518.9,34.44613262]
[1674132951706,0.01869467,1519.0,1518.9,40.94613262]
[1674132952023,0.01869467,1519.0,1518.9,37.44613262]
[1674132952443,0.01869467,1519.0,1518.9,37.67613262]
[1674132952754,0.01869467,1519.0,1518.9,36.29313262]
[1674132953826,0.01869467,1519.0,1518.9,29.15113262]
[1674132954066,0.01869467,1519.0,1518.9,28.49420019]
[1674132954542,1.28969467,1519.0,1518.9,28.49420019]
[1674132954819,4.28969467,1519.0,1518.9,26.17650926]
[1674132956270,3.01869467,1519.0,1518.9,26.17650926]
[1674132959954,3.01869467,1519.0,1518.9,26.40650926]
[1674132963156,3.01869467,1519.0,1518.9,33.97544169]
[1674132963157,0.01869467,1519.0,1518.9,33.97544169]
[1674132963373,0.01869467,1519.0,1518.9,38.03137486]
[1674132964356,0.01869467,1519.0,1518.9,31.11937486]
[1674132964682,0.01869467,1519.0,1518.9,30.88937486]
[1674132964683,3.01869467,1519.0,1518.9,30.88937486]
[1674132965833,3.01869467,1519.0,1518.9,30.23244243]
[1674132966659,3.01869467,1519.0,1518.9,30.46244243]
[1674132966872,1.7990862,1519.0,1518.9,30.46244243]
[1674132968322,0.02771034,1519.1,1518.9,42.91337486]
[1674132968682,0.02771034,1519.1,1519.0,37.47489508]
[1674132968894,0.02771034,1519.1,1519.0,37.54089508]
[1674132969208,0.02771034,1519.1,1519.0,38.19782751]
[1674132971728,0.02771034,1519.1,1519.0,31.28582751]
[1674132971933,0.02771034,1519.1,1519.0,30.39889508]
[1674132972779,0.02771034,1519.1,1519.0,37.96782751]
[1674132973509,0.02771034,1519.1,1519.0,38.19782751]
[1674132974082,0.02771034,1519.1,1519.0,31.28582751]
[1674132975884,0.02771034,1519.1,1519.0,38.19782751]
[1674132977139,0.02771034,1519.1,1519.0,39.34110148]
[1674132977353,0.02771034,1519.1,1519.0,41.05597094]
[1674132981105,0.02771034,1519.1,1519.0,42.54102286]
[1674132981454,0.02771034,1519.1,1519.0,41.88409043]
[1674132981669,0.02771034,1519.1,1519.0,46.76709043]
[1674132981901,0.02771034,1519.1,1519.0,47.42402286]
[1674132982230,0.08243396,1519.3,1519.2,6.912]
[1674132982384,0.08243396,1519.3,1519.2,40.62058759]
[1674132982594,0.08243396,1519.3,1519.2,41.27752002]
[1674132985331,0.08243396,1519.3,1519.2,76.27752002]
[1674132987275,0.08243396,1519.3,1519.2,76.07752002]
[1674132987795,0.08243396,1519.3,1519.2,75.42058759]
[1674132987948,0.08243396,1519.3,1519.2,76.07752002]
[1674132990113,1.7990862,1519.4,1519.3,20.74591]
[1674132990267,1.7990862,1519.4,1519.3,32.85596388]
[1674132990484,1.7990862,1519.4,1519.3,33.51289631]
[1674132991476,1.7990862,1519.4,1519.3,36.37034834]
[1674132992113,1.7990862,1519.4,1519.3,34.65589922]
[1674132993369,1.7990862,1519.4,1519.3,36.37032582]
[1674132993695,1.7990862,1519.4,1519.3,34.65589922]
[1674132994228,1.7990862,1519.4,1519.3,36.37035976]
[1674132994419,1.7990862,1519.4,1519.3,34.65589922]
[1674132994629,0.08243396,1519.5,1519.3,37.74935389]
[1674132994855,0.08243396,1519.5,1519.4,39.2792144]
[1674132995087,0.08243396,1519.5,1519.4,38.20230298]
[1674132995278,0.08243396,1519.5,1519.4,38.85923541]
[1674132995905,0.08243396,1519.5,1519.4,41.71642963]
[1674132996948,0.08243396,1519.5,1519.4,40.00211397]
[1674132997405,1.7990862,1519.6,1519.4,40.00211397]
[1674132997574,1.7990862,1519.6,1519.5,14.00395899]
[1674132997786,1.7990862,1519.6,1519.5,14.72689142]
[1674132998092,0.15980425,1519.8,1519.5,37.70022142]
[1674132998339,1.89289045,1519.8,1519.7,29.61270759]
[1674132998622,1.89289045,1519.8,1519.7,32.90870759]
[1674132998831,1.89289045,1519.8,1519.7,37.69340402]
[1674133000323,1.89289045,1519.8,1519.7,44.40540402]
[1674133004470,1.89289045,1519.8,1519.7,44.17540402]
[1674133004774,1.89289045,1519.8,1519.7,37.46340402]
[1674133005302,1.89289045,1519.8,1519.7,33.33564002]
[1674133005507,1.89289045,1519.8,1519.7,32.67870759]
[1674133005680,1.89289045,1519.8,1519.7,26.09846759]
[1674133011171,3.43589045,1519.8,1519.7,0.066]
[1674133011390,3.92949045,1519.8,1519.6,0.066]
[1674133011586,0.83718904,1519.7,1519.5,13.22792]
[1674133011929,3.3410862,1519.6,1519.5,9.93861759]
[1674133012771,1.7990862,1519.6,1519.5,9.93861759]
[1674133015253,1.7990862,1519.6,1519.5,6.64687]
[1674133015760,3.3420862,1519.6,1519.5,0.066]
[1674133015972,4.51736267,1519.6,1519.4,0.066]
[1674133016180,3.5897,1519.5,1519.3,0.066]
[1674133016451,3.7130562,1519.4,1519.2,0.066]
[1674133016664,1.4938,1519.3,1519.1,0.066]
[1674133016987,1.4938,1519.3,1519.0,6.58307]
[1674133016988,1.553,1519.2,1519.0,6.64907]
[1674133017187,1.553,1519.2,1519.0,9.94081759]
[1674133017757,1.7990862,1519.1,1519.0,9.93703604]
[1674133017968,1.7990862,1519.1,1519.0,25.43020224]
[1674133017969,0.57955814,1519.1,1519.0,25.43020224]
[1674133018390,0.57955814,1519.1,1519.0,28.43020224]
[1674133018650,0.57955814,1519.1,1519.0,28.66020224]
[1674133021560,0.57955814,1519.1,1519.0,29.80336093]
[1674133021798,0.57955814,1519.1,1519.0,31.51808955]
[1674133021967,0.57955814,1519.1,1519.0,32.20571896]
[1674133022509,0.57955814,1519.1,1519.0,32.86265139]
[1674133023886,0.57955814,1519.1,1519.0,32.20571896]
[1674133024287,8.3404,1519.5,1519.1,1.71060479]
[1674133024499,8.3404,1519.5,1519.3,1.0]
[1674133024704,8.3404,1519.5,1519.4,23.03636759]
[1674133024705,0.066,1519.5,1519.4,23.03636759]
[1674133024932,0.066,1519.6,1519.4,23.10236759]
[1674133025143,0.4936,1519.7,1519.5,3.29174759]
[1674133025357,0.4936,1519.7,1519.5,16.45347759]
[1674133025673,0.4936,1519.7,1519.6,3.29174759]
[1674133026023,0.58740425,1519.8,1519.6,23.03375759]
[1674133026178,0.58740425,1519.8,1519.6,23.09975759]
[1674133026384,0.58740425,1519.8,1519.7,3.29174759]
[1674133026658,0.58740425,1519.8,1519.7,16.45222759]
[1674133026815,0.58740425,1519.8,1519.7,16.51822759]
[1674133028117,0.58740425,1519.8,1519.7,23.09846759]
[1674133029645,0.09380425,1519.8,1519.7,23.09846759]
[1674133029856,0.09380425,1519.8,1519.7,26.06638135]
[1674133030079,0.09380425,1519.8,1519.7,29.06638135]
[1674133030374,0.09380425,1519.8,1519.7,29.29638135]
[1674133034538,0.09380425,1519.8,1519.7,26.09846759]
[1674133035169,1.36480425,1519.8,1519.7,26.09846759]
[1674133035690,0.09380425,1519.8,1519.7,26.09846759]
[1674133036010,1.36480425,1519.8,1519.7,26.09846759]
[1674133036377,0.09380425,1519.8,1519.7,26.09846759]
[1674133037565,1.36480425,1519.8,1519.7,26.09846759]
[1674133038509,0.09380425,1519.8,1519.7,26.09846759]
[1674133038759,1.36480425,1519.8,1519.7,26.09846759]
[1674133038974,1.36480425,1519.8,1519.7,16.22648]
[1674133039284,1.36480425,1519.8,1519.7,0.066]
[1674133039285,4.02938783,1519.8,1519.7,0.066]
[1674133039446,4.02938783,1519.8,1519.6,0.066]
[1674133039447,8.1004386,1519.8,1519.6,0.066]
[1674133039664,2.0396,1519.7,1519.5,6.64689]
[1674133039855,1.552,1519.6,1519.5,6.64689]
[1674133041955,1.552,1519.6,1519.5,0.066]
[1674133042167,3.107,1519.6,1519.4,0.066]
[1674133042413,3.4207,1519.5,1519.3,6.64779]
[1674133042601,1.546,1519.4,1519.3,0.066]
[1674133042832,1.8657,1519.5,1519.2,19.81253]
[1674133043023,1.555,1519.5,1519.2,25.08553059]
[1674133043236,1.555,1519.5,1519.2,23.10427759]
[1674133045059,1.555,1519.5,1519.2,6.64813]
[1674133045214,2.0487,1519.5,1519.2,0.066]
[1674133045424,1.54,1519.4,1519.1,6.64864]
[1674133045689,1.546,1519.3,1519.1,6.64864]
[1674133048575,1.546,1519.3,1519.1,0.066]
[1674133048824,1.546,1519.3,1519.0,13.23222]
[1674133049041,2.64049378,1519.4,1519.0,16.52396759]
[1674133052680,1.555,1519.4,1519.0,19.14417778]
[1674133053009,0.066,1519.5,1519.4,1.3192487]
[1674133053365,11.2838,1519.7,1519.4,7.9007887]
[1674133053539,14.19375829,1519.7,1519.4,7.9667887]
[1674133053726,11.2838,1519.7,1519.4,11.25853629]
[1674133053940,9.7318,1519.7,1519.4,17.84007629]
[1674133054487,9.7318,1519.7,1519.4,24.42161629]
[1674133057973,9.7318,1519.7,1519.4,23.10236759]
[1674133058301,9.7318,1519.7,1519.6,6.58067]
[1674133058511,9.7318,1519.7,1519.6,6.64667]
[1674133059107,0.066,1519.7,1519.6,6.64667]
[1674133059357,2.8275121,1519.8,1519.6,6.64667]
[1674133059879,0.09380425,1519.8,1519.6,23.09975759]
[1674133064382,0.09380425,1519.8,1519.6,16.51908759]
[1674133064578,0.4936,1519.7,1519.6,0.066]
[1674133064925,1.51622783,1519.8,1519.5,6.6471]
[1674133065141,3.07222783,1519.8,1519.5,6.6471]
[1674133068432,2.14340425,1519.8,1519.5,6.6471]
[1674133070476,2.14340425,1519.8,1519.5,13.22821]
[1674133070897,2.8285121,1519.8,1519.5,16.51995759]
[1674133071173,2.8285121,1519.8,1519.5,23.10106759]
[1674133071174,1.64980425,1519.8,1519.5,23.10106759]
[1674133071323,1.64980425,1519.8,1519.5,26.06929835]
[1674133072006,2.3349121,1519.8,1519.5,19.80932]
[1674133072220,3.36536287,1519.8,1519.5,6.6471]
[1674133072431,1.553,1519.6,1519.5,0.066]
[1674133072645,1.553,1519.6,1519.4,0.066]
[1674133072837,2.9823,1519.5,1519.3,6.64791]
[1674133073019,1.555,1519.4,1519.3,6.64791]
[1674133073254,1.555,1519.4,1519.3,0.066]
[1674133073469,1.85313,1519.4,1519.2,0.066]
[1674133073735,1.85313,1519.4,1519.1,6.6486]
[1674133074948,1.556,1519.3,1519.1,6.6486]
[1674133076089,1.556,1519.2,1519.1,6.6486]
[1674133076933,1.556,1519.2,1519.1,0.066]
[1674133077144,1.556,1519.2,1519.0,6.64902]
[1674133077422,1.556,1519.2,1519.0,16.52383759]
[1674133078778,1.551,1519.1,1519.0,0.06307947]
[1674133078952,1.551,1519.1,1518.9,0.09443431]
[1674133079144,1.556,1519.0,1518.9,0.09443431]
[1674133080316,1.8116,1519.0,1518.9,0.09443431]
[1674133081407,1.556,1519.0,1518.9,0.09443431]
[1674133082017,24.56631,1519.2,1518.9,6.67814431]
[1674133082018,11.1456,1519.2,1518.9,6.67814431]
[1674133082348,11.1456,1519.2,1518.9,6.74122378]
[1674133083191,2.1158,1519.2,1518.9,6.74122378]
[1674133083342,2.0498,1519.2,1518.9,6.74122378]
[1674133084393,3.180889,1519.2,1518.9,6.74122378]
[1674133085263,3.180889,1519.2,1518.9,0.15751378]